[Event "Chessity Nationale Pupillendag 2018 - Groep G"]
[Site "Meppel, Netherlands"]
[Date "2018.06.23"]
[Round "4.1"]
[White "Heukelom, Aurelia"]
[Black "Aubel, Daan"]
[Result "0-1"]
[TimeControl "15 min + 10 sec"]
[WhiteElo "703"]
[BlackElo "833"]

1. d4 {[%clk 00:15:19]} {[%emt 00:09:44]} f5 {[%clk 00:15:19]} {[%emt
00:00:02]} 2. c4 {[%clk 00:15:24]} {[%emt 00:00:04]} Nf6 {[%clk 00:15:27]}
{[%emt 00:00:02]} 3. Nf3 {[%clk 00:15:29]} {[%emt 00:00:06]} e6 {[%clk
00:15:35]} 4. Bg5 {[%clk 00:15:33]} {[%emt 00:00:06]} b6 {[%clk 00:15:39]}
{[%emt 00:00:06]} 5. Bxf6 {[%clk 00:15:39]} {[%emt 00:00:04]} Qxf6 {[%clk
00:15:47]} {[%emt 00:00:02]} 6. g3 {[%clk 00:15:46]} {[%emt 00:00:04]} Bb7
{[%clk 00:15:54]} {[%emt 00:00:03]} 7. Bg2 {[%clk 00:15:54]} {[%emt 00:00:02]}
Bb4+ {[%clk 00:15:49]} {[%emt 00:00:15]} 8. Nc3 {[%clk 00:16:02]} {[%emt
00:00:02]} d6 {[%clk 00:15:49]} {[%emt 00:00:09]} 9. O-O {[%clk 00:16:08]}
{[%emt 00:00:03]} O-O {[%clk 00:15:56]} {[%emt 00:00:04]} 10. Nh4 {[%clk
00:16:04]} {[%emt 00:00:14]} Bxg2 {[%clk 00:15:58]} {[%emt 00:00:09]} 11. Nxg2
{[%clk 00:16:10]} {[%emt 00:00:03]} Bxc3 {[%clk 00:16:06]} {[%emt 00:00:02]} 12.
bxc3 {[%clk 00:16:19]} {[%emt 00:00:02]} Nd7 {[%clk 00:16:12]} {[%emt
00:00:04]} 13. Qd3 {[%clk 00:16:14]} {[%emt 00:00:16]} Rad8 {[%clk 00:16:04]}
{[%emt 00:00:17]} 14. Rab1 {[%clk 00:16:14]} {[%emt 00:00:10]} c5 {[%clk
00:16:12]} {[%emt 00:00:02]} 15. dxc5 {[%clk 00:16:19]} {[%emt 00:00:05]} Nxc5
{[%clk 00:16:20]} {[%emt 00:00:02]} 16. Qd4 {[%clk 00:16:25]} {[%emt 00:00:03]}
Qxd4 {[%clk 00:16:22]} {[%emt 00:00:08]} 17. cxd4 {[%clk 00:16:33]} {[%emt
00:00:02]} Ne4 {[%clk 00:16:30]} {[%emt 00:00:02]} 18. Rfc1 {[%clk 00:16:07]}
{[%emt 00:00:28]} Rc8 {[%clk 00:16:33]} {[%emt 00:00:16]} 19. f3 {[%clk
00:16:12]} {[%emt 00:00:05]} Nd2 {[%clk 00:16:18]} {[%emt 00:00:24]} 20. Rb4
{[%clk 00:16:06]} {[%emt 00:00:16]} d5 {[%clk 00:16:04]} {[%emt 00:00:25]} 21.
c5 {[%clk 00:16:08]} {[%emt 00:00:08]} bxc5 {[%clk 00:16:02]} {[%emt 00:00:11]}
22. dxc5 {[%clk 00:16:14]} {[%emt 00:00:04]} Nc4 {[%clk 00:16:10]} {[%emt
00:00:03]} 23. Kf2 {[%clk 00:15:51]} {[%emt 00:00:33]} Rxc5 {[%clk 00:16:10]}
{[%emt 00:00:09]} 24. Ne3 {[%clk 00:15:58]} {[%emt 00:00:04]} Rfc8 {[%clk
00:16:10]} {[%emt 00:00:09]} 25. Nxc4 {[%clk 00:15:43]} {[%emt 00:00:25]} Rxc4
{[%clk 00:16:18]} {[%emt 00:00:02]} 26. Rbxc4 {[%clk 00:15:51]} {[%emt
00:00:03]} Rxc4 {[%clk 00:16:26]} {[%emt 00:00:02]} 27. Rxc4 {[%clk 00:15:59]}
{[%emt 00:00:01]} dxc4 {[%clk 00:16:35]} {[%emt 00:00:01]} 28. Ke1 {[%clk
00:15:57]} {[%emt 00:00:12]} Kf7 {[%clk 00:16:44]} {[%emt 00:00:02]} 29. Kd2
{[%clk 00:16:06]} Ke7 {[%clk 00:16:53]} {[%emt 00:00:02]} 30. Kc3 {[%clk
00:16:15]} Kd6 {[%clk 00:17:00]} {[%emt 00:00:03]} 31. Kxc4 {[%clk 00:16:24]}
{[%emt 00:00:02]} Kc6 {[%clk 00:17:09]} 32. f4 {[%clk 00:16:29]} {[%emt
00:00:05]} g6 {[%clk 00:17:14]} {[%emt 00:00:04]} 33. a4 {[%clk 00:16:31]}
{[%emt 00:00:09]} a6 {[%clk 00:17:20]} {[%emt 00:00:04]} 34. a5 {[%clk
00:16:36]} {[%emt 00:00:05]} h6 {[%clk 00:17:27]} {[%emt 00:00:03]} 35. h3
{[%clk 00:16:42]} {[%emt 00:00:03]} g5 {[%clk 00:17:24]} {[%emt 00:00:13]} 36.
e3 {[%clk 00:16:40]} {[%emt 00:00:13]} g4 {[%clk 00:17:23]} {[%emt 00:00:10]}
37. hxg4 {[%clk 00:16:45]} {[%emt 00:00:06]} fxg4 {[%clk 00:17:31]} {[%emt
00:00:02]} 38. e4 {[%clk 00:16:53]} {[%emt 00:00:02]} Kd6 {[%clk 00:17:31]}
{[%emt 00:00:10]} 39. Kd4 {[%clk 00:16:57]} {[%emt 00:00:05]} Kd7 {[%clk
00:17:29]} {[%emt 00:00:11]} 40. Kc5 {[%clk 00:17:05]} {[%emt 00:00:05]} Kc7
{[%clk 00:17:37]} {[%emt 00:00:01]} 41. e5 {[%clk 00:17:08]} {[%emt 00:00:07]}
h5 {[%clk 00:17:42]} {[%emt 00:00:06]} 42. f5 {[%clk 00:17:08]} {[%emt
00:00:10]} exf5 {[%clk 00:17:42]} {[%emt 00:00:10]} 43. e6 {[%clk 00:17:16]}
{[%emt 00:00:01]} Kd8 {[%clk 00:17:51]} {[%emt 00:00:02]} 44. Kd6 {[%clk
00:17:22]} {[%emt 00:00:04]} f4 {[%clk 00:17:56]} {[%emt 00:00:05]} 45. e7+
{[%clk 00:17:27]} {[%emt 00:00:05]} Ke8 {[%clk 00:18:05]} {[%emt 00:00:01]} 46.
gxf4 {[%clk 00:17:26]} {[%emt 00:00:11]} g3 {[%clk 00:18:14]} 47. f5 {[%clk
00:17:29]} {[%emt 00:00:07]} g2 {[%clk 00:18:22]} {[%emt 00:00:01]} 48. f6
{[%clk 00:17:38]} {[%emt 00:00:01]} g1=Q {[%clk 00:18:27]} {[%emt 00:00:03]} 49.
f7+ {[%clk 00:17:42]} {[%emt 00:00:07]} Kxf7 {[%clk 00:18:35]} {[%emt
00:00:02]} 50. Kd7 {[%clk 00:17:51]} Qd4+ {[%clk 00:18:42]} {[%emt 00:00:04]}
51. Kc7 {[%clk 00:17:57]} {[%emt 00:00:04]} Kxe7 {[%clk 00:18:50]} {[%emt
00:00:02]} 52. Kb7 {[%clk 00:18:06]} Qd6 {[%clk 00:18:52]} {[%emt 00:00:07]} 53.
Ka7 {[%clk 00:18:12]} {[%emt 00:00:06]} Kd7 {[%clk 00:18:54]} {[%emt 00:00:08]}
54. Kb7 {[%clk 00:18:19]} {[%emt 00:00:02]} Qc6+ {[%clk 00:19:03]} {[%emt
00:00:02]} 55. Ka7 {[%clk 00:18:25]} {[%emt 00:00:04]} Qc7+ {[%clk 00:18:49]}
{[%emt 00:00:24]} 56. Ka8 {[%clk 00:18:27]} {[%emt 00:00:07]} Qxa5 {[%clk
00:18:54]} {[%emt 00:00:06]} 57. Ka7 {[%clk 00:18:32]} {[%emt 00:00:04]} Kc7
{[%clk 00:18:58]} {[%emt 00:00:06]} 58. Ka8 {[%clk 00:18:38]} {[%emt 00:00:04]}
Qd5+ {[%clk 00:19:07]} {[%emt 00:00:02]} 59. Ka7 {[%clk 00:18:45]} {[%emt
00:00:02]} Qb7# {[%emt 00:00:02]} 0-1

[Event "Chessity Nationale Pupillendag 2018 - Groep G"]
[Site "Meppel, Netherlands"]
[Date "2018.06.23"]
[Round "4.2"]
[White "Verwer, Oscar"]
[Black "Van Rijn, Vincent"]
[Result "1/2-1/2"]
[TimeControl "15 min + 10 sec"]
[WhiteElo "833"]
[BlackElo "699"]

1. e4 {[%clk 00:15:18]} {[%emt 00:00:02]} d5 {[%clk 00:15:20]} 2. exd5 {[%emt
00:00:02]} Qxd5 {[%emt 00:00:01]} 3. Nc3 {[%clk 00:15:33]} {[%emt 00:00:02]}
Qe6+ {[%clk 00:15:39]} {[%emt 00:00:01]} 4. Be2 {[%clk 00:15:38]} {[%emt
00:00:05]} Nf6 {[%clk 00:15:46]} {[%emt 00:00:02]} 5. Nf3 {[%clk 00:15:41]}
{[%emt 00:00:07]} Nc6 {[%clk 00:15:55]} {[%emt 00:00:02]} 6. d4 {[%clk
00:15:39]} {[%emt 00:00:12]} g6 {[%clk 00:15:53]} {[%emt 00:00:13]} 7. d5
{[%clk 00:15:43]} {[%emt 00:00:05]} Nxd5 {[%clk 00:15:28]} {[%emt 00:00:35]} 8.
Nxd5 {[%clk 00:15:50]} {[%emt 00:00:03]} Qd6 {[%clk 00:15:29]} {[%emt
00:00:10]} 9. Bf4 {[%clk 00:15:45]} {[%emt 00:00:13]} e5 {[%clk 00:15:14]}
{[%emt 00:00:26]} 10. Bg5 {[%clk 00:14:59]} {[%emt 00:00:46]} Bg7 {[%clk
00:15:18]} {[%emt 00:00:15]} 11. O-O {[%clk 00:14:56]} {[%emt 00:00:14]} O-O
{[%clk 00:15:27]} {[%emt 00:00:02]} 12. Qd2 {[%clk 00:14:18]} {[%emt 00:00:47]}
Be6 {[%clk 00:15:14]} {[%emt 00:00:22]} 13. c4 {[%clk 00:14:07]} {[%emt
00:00:22]} e4 {[%clk 00:14:31]} {[%emt 00:00:53]} 14. Bf4 {[%clk 00:14:06]}
{[%emt 00:00:08]} Qd7 {[%clk 00:14:17]} {[%emt 00:00:26]} 15. Ng5 {[%clk
00:13:36]} {[%emt 00:00:40]} Rad8 {[%clk 00:13:55]} {[%emt 00:00:31]} 16. Qe3
{[%clk 00:13:21]} {[%emt 00:00:24]} Bxd5 {[%clk 00:13:51]} {[%emt 00:00:16]} 17.
cxd5 {[%clk 00:13:26]} {[%emt 00:00:05]} Qxd5 {[%clk 00:13:56]} {[%emt
00:00:06]} 18. Rfd1 {[%clk 00:13:10]} {[%emt 00:00:25]} Nd4 {[%clk 00:13:37]}
{[%emt 00:00:29]} 19. Kf1 {[%clk 00:12:46]} {[%emt 00:00:32]} c5 {[%clk
00:13:22]} {[%emt 00:00:28]} 20. Qh3 {[%clk 00:12:40]} {[%emt 00:00:14]} h6
{[%clk 00:13:11]} {[%emt 00:00:22]} 21. Nxf7 {[%clk 00:10:48]} {[%emt
00:02:01]} Qxf7 {[%clk 00:12:52]} {[%emt 00:00:30]} 22. b3 {[%clk 00:10:46]}
{[%emt 00:00:11]} Nxe2 {[%clk 00:12:44]} {[%emt 00:00:18]} 23. Rxd8 {[%clk
00:10:39]} {[%emt 00:00:18]} Rxd8 {[%clk 00:12:21]} {[%emt 00:00:34]} 24. Kxe2
{[%clk 00:10:40]} {[%emt 00:00:09]} Bxa1 {[%clk 00:12:20]} {[%emt 00:00:11]} 25.
Bxh6 {[%clk 00:10:36]} {[%emt 00:00:12]} Qh7 {[%clk 00:12:00]} {[%emt
00:00:31]} 26. Qe6+ {[%clk 00:10:19]} {[%emt 00:00:22]} Qf7 {[%clk 00:11:59]}
{[%emt 00:00:16]} 27. Qh3 {[%clk 00:10:26]} {[%emt 00:00:03]} Re8 {[%clk
00:11:48]} {[%emt 00:00:22]} 28. Qe3 {[%clk 00:09:45]} {[%emt 00:00:48]} Qh7
{[%clk 00:11:45]} {[%emt 00:00:13]} 29. Qh3 {[%clk 00:09:46]} {[%emt 00:00:09]}
Re7 {[%clk 00:11:07]} {[%emt 00:00:51]} 30. g4 {[%clk 00:09:32]} {[%emt
00:00:22]} Bg7 {[%clk 00:11:08]} {[%emt 00:00:10]} 31. g5 {[%clk 00:09:33]}
{[%emt 00:00:09]} Re5 {[%clk 00:10:42]} {[%emt 00:00:37]} 32. Qc8+ {[%clk
00:09:26]} {[%emt 00:00:15]} Kf7 {[%clk 00:10:35]} {[%emt 00:00:19]} 33. Qxb7+
{[%clk 00:09:19]} {[%emt 00:00:15]} Re7 {[%clk 00:10:38]} {[%emt 00:00:07]} 34.
Qd5+ {[%clk 00:09:13]} {[%emt 00:00:17]} Kf8 {[%clk 00:10:11]} {[%emt
00:00:37]} 35. Qd8+ {[%clk 00:09:11]} {[%emt 00:00:12]} Kf7 {[%clk 00:10:05]}
{[%emt 00:00:16]} 36. Qd5+ {[%clk 00:09:19]} {[%emt 00:00:02]} 1/2-1/2

[Event "Chessity Nationale Pupillendag 2018 - Groep G"]
[Site "Meppel, Netherlands"]
[Date "2018.06.23"]
[Round "4.3"]
[White "Jorritsma, Eli Alia"]
[Black "Pereira Garza, Cecilia"]
[Result "1-0"]
[TimeControl "15 min + 10 sec"]
[WhiteElo "636"]
[BlackElo "616"]

1. e4 {[%clk 00:15:18]} {[%emt 00:00:02]} e6 {[%clk 00:15:19]} {[%emt
00:00:02]} 2. d4 {[%clk 00:15:23]} {[%emt 00:00:05]} d5 {[%clk 00:15:26]}
{[%emt 00:00:02]} 3. e5 {[%clk 00:15:30]} {[%emt 00:00:04]} c5 {[%clk
00:15:33]} {[%emt 00:00:02]} 4. Nf3 {[%clk 00:15:26]} {[%emt 00:00:14]} Nc6
{[%clk 00:15:40]} {[%emt 00:00:02]} 5. Nc3 {[%clk 00:15:27]} {[%emt 00:00:10]}
Qc7 {[%clk 00:15:19]} {[%emt 00:00:29]} 6. Bg5 {[%clk 00:15:25]} {[%emt
00:00:13]} f6 {[%clk 00:15:24]} {[%emt 00:00:06]} 7. Be3 {[%clk 00:15:30]}
{[%emt 00:00:04]} fxe5 {[%clk 00:15:07]} {[%emt 00:00:27]} 8. dxe5 {[%clk
00:15:24]} {[%emt 00:00:16]} d4 {[%clk 00:15:13]} {[%emt 00:00:05]} 9. Nb5
{[%clk 00:15:19]} {[%emt 00:00:15]} Qa5+ {[%clk 00:15:09]} {[%emt 00:00:13]} 10.
Bd2 {[%clk 00:15:12]} {[%emt 00:00:17]} Qd8 {[%clk 00:14:56]} {[%emt 00:00:20]}
11. Bc4 {[%clk 00:15:05]} {[%emt 00:00:18]} a6 {[%clk 00:14:59]} {[%emt
00:00:09]} 12. Nd6+ {[%clk 00:14:52]} {[%emt 00:00:24]} Bxd6 {[%clk 00:15:04]}
{[%emt 00:00:06]} 13. exd6 {[%clk 00:14:58]} {[%emt 00:00:03]} Qxd6 {[%clk
00:15:10]} {[%emt 00:00:04]} 14. O-O {[%clk 00:14:21]} {[%emt 00:00:48]} Nf6
{[%clk 00:15:16]} {[%emt 00:00:04]} 15. Re1 {[%clk 00:14:08]} {[%emt 00:00:22]}
O-O {[%clk 00:15:21]} {[%emt 00:00:06]} 16. Re2 {[%clk 00:14:04]} {[%emt
00:00:13]} Re8 {[%clk 00:15:23]} {[%emt 00:00:07]} 17. Ng5 {[%clk 00:14:05]}
{[%emt 00:00:09]} h6 {[%clk 00:15:16]} {[%emt 00:00:16]} 18. Nf3 {[%clk
00:14:09]} {[%emt 00:00:05]} Kh8 {[%emt 00:00:14]} 19. c3 {[%clk 00:13:49]}
{[%emt 00:00:28]} e5 {[%clk 00:15:14]} {[%emt 00:00:12]} 20. Qe1 {[%clk
00:12:46]} {[%emt 00:01:14]} e4 {[%clk 00:14:57]} {[%emt 00:00:26]} 21. Nh4
{[%clk 00:12:35]} {[%emt 00:00:19]} Ne5 {[%clk 00:13:54]} {[%emt 00:01:14]} 22.
Bf4 {[%clk 00:12:05]} {[%emt 00:00:41]} Nfd7 {[%clk 00:12:53]} {[%emt
00:01:09]} 23. Bxe5 {[%clk 00:12:06]} {[%emt 00:00:11]} Nxe5 {[%clk 00:12:58]}
{[%emt 00:00:06]} 24. Rxe4 {[%clk 00:11:57]} {[%emt 00:00:19]} Kh7 {[%clk
00:11:58]} {[%emt 00:01:09]} 25. Nf3 {[%clk 00:11:58]} {[%emt 00:00:09]} Nxf3+
{[%clk 00:11:54]} {[%emt 00:00:14]} 26. gxf3 {[%clk 00:12:03]} {[%emt
00:00:05]} Rxe4 {[%clk 00:11:59]} {[%emt 00:00:06]} 27. Qxe4 {[%emt 00:00:15]}
Qg6+ {[%clk 00:11:48]} {[%emt 00:00:12]} 28. Kf1 {[%clk 00:11:59]} {[%emt
00:00:16]} Qxe4 {[%clk 00:11:43]} {[%emt 00:00:16]} 29. fxe4 {[%clk 00:12:05]}
{[%emt 00:00:04]} Bd7 {[%clk 00:11:47]} {[%emt 00:00:06]} 30. Re1 {[%clk
00:12:09]} {[%emt 00:00:04]} Bb5 {[%clk 00:11:54]} {[%emt 00:00:04]} 31. b3
{[%clk 00:12:01]} {[%emt 00:00:19]} Bxc4+ {[%clk 00:12:00]} {[%emt 00:00:04]}
32. bxc4 {[%clk 00:12:05]} {[%emt 00:00:06]} dxc3 {[%clk 00:12:09]} 33. Rc1
{[%clk 00:12:07]} {[%emt 00:00:09]} Re8 {[%clk 00:12:16]} {[%emt 00:00:03]} 34.
f3 {[%clk 00:12:13]} {[%emt 00:00:04]} Rd8 {[%clk 00:11:18]} {[%emt 00:01:06]}
35. Rxc3 {[%clk 00:12:18]} {[%emt 00:00:06]} Rd2 {[%clk 00:11:24]} {[%emt
00:00:04]} 36. Re3 {[%clk 00:11:55]} {[%emt 00:00:32]} Kg6 {[%clk 00:11:11]}
{[%emt 00:00:24]} 37. e5 {[%clk 00:12:01]} {[%emt 00:00:04]} Rxh2 {[%clk
00:11:18]} {[%emt 00:00:04]} 38. e6 {[%clk 00:12:07]} {[%emt 00:00:03]} Kf6
{[%clk 00:09:44]} {[%emt 00:01:45]} 39. e7 {[%clk 00:12:12]} {[%emt 00:00:04]}
Rh1+ {[%clk 00:09:51]} {[%emt 00:00:03]} 40. Kf2 {[%clk 00:12:19]} {[%emt
00:00:02]} Rh2+ {[%clk 00:09:36]} {[%emt 00:00:26]} 41. Kg3 {[%clk 00:12:26]}
{[%emt 00:00:04]} Kf7 {[%clk 00:08:47]} {[%emt 00:00:59]} 42. e8=Q+ {[%clk
00:12:28]} {[%emt 00:00:07]} Kf6 {[%clk 00:08:54]} {[%emt 00:00:04]} 43. Qe6+
{[%clk 00:12:31]} {[%emt 00:00:05]} Kg5 {[%clk 00:09:02]} {[%emt 00:00:04]} 44.
Re5+ {[%clk 00:12:35]} {[%emt 00:00:04]} 1-0

[Event "Chessity Nationale Pupillendag 2018 - Groep G"]
[Site "Meppel, Netherlands"]
[Date "2018.06.23"]
[Round "4.4"]
[White "Brands, Robin"]
[Black "Gelten, Evan"]
[Result "0-1"]
[TimeControl "15 min + 10 sec"]
[WhiteElo "314"]
[BlackElo "757"]

1. e4 {[%clk 00:15:10]} e5 {[%clk 00:15:10]} 2. Nf3 {[%clk 00:15:10]} Nc6
{[%clk 00:15:26]} {[%emt 00:10:25]} 3. Bc4 {[%emt 00:00:03]} Bc5 {[%clk
00:15:33]} {[%emt 00:00:01]} 4. O-O {[%clk 00:15:41]} {[%emt 00:00:04]} Nf6
{[%clk 00:15:33]} {[%emt 00:00:11]} 5. Nc3 {[%clk 00:15:50]} {[%emt 00:00:01]}
d6 {[%clk 00:15:38]} {[%emt 00:00:04]} 6. d3 {[%clk 00:15:59]} {[%emt
00:00:03]} Bg4 {[%clk 00:15:42]} {[%emt 00:00:06]} 7. Be3 {[%clk 00:16:03]}
{[%emt 00:00:06]} Nd4 {[%clk 00:15:45]} {[%emt 00:00:06]} 8. a3 {[%clk
00:15:54]} {[%emt 00:00:20]} Nxf3+ {[%clk 00:15:45]} {[%emt 00:00:08]} 9. gxf3
{[%clk 00:15:51]} {[%emt 00:00:05]} Bh3 {[%clk 00:15:51]} {[%emt 00:00:02]} 10.
Re1 {[%clk 00:16:10]} {[%emt 00:00:02]} Bxe3 {[%clk 00:15:43]} {[%emt
00:00:06]} 11. fxe3 {[%clk 00:16:11]} {[%emt 00:00:18]} c6 {[%clk 00:15:50]} 12.
d4 {[%clk 00:16:11]} exd4 {[%clk 00:15:50]} {[%emt 00:00:08]} 13. exd4 {[%clk
00:16:20]} {[%emt 00:00:05]} O-O {[%clk 00:16:01]} 14. e5 {[%clk 00:16:20]}
dxe5 {[%clk 00:16:01]} {[%emt 00:00:14]} 15. dxe5 {[%emt 00:00:06]} Qxd1 {[%clk
00:16:01]} {[%emt 00:00:07]} 16. Raxd1 {[%emt 00:00:15]} Nh5 {[%clk 00:15:50]}
{[%emt 00:00:10]} 17. Bd3 {[%emt 00:00:32]} Rad8 {[%emt 00:00:14]} 18. Be2
{[%clk 00:16:17]} {[%emt 00:00:04]} Rxd1 {[%emt 00:00:13]} 19. Rxd1 {[%emt
00:00:04]} h6 {[%clk 00:15:25]} {[%emt 00:00:15]} 20. f4 Nxf4 {[%clk 00:15:07]}
21. Bf3 {[%clk 00:16:31]} Re8 {[%clk 00:15:07]} {[%emt 00:00:07]} 22. Re1 f6
{[%clk 00:15:07]} {[%emt 00:00:24]} 23. Re4 {[%clk 00:16:13]} Nd5 {[%clk
00:15:09]} {[%emt 00:00:35]} 24. Nxd5 {[%clk 00:16:21]} cxd5 {[%clk 00:15:17]}
{[%emt 00:00:05]} 25. Rd4 {[%clk 00:16:24]} Rxe5 {[%clk 00:15:24]} {[%emt
00:00:09]} 26. Be4 {[%clk 00:16:24]} {[%emt 00:00:31]} 0-1

[Event "Chessity Nationale Pupillendag 2018 - Groep G"]
[Site "Meppel, Netherlands"]
[Date "2018.06.23"]
[Round "5.1"]
[White "Aubel, Daan"]
[Black "Jorritsma, Eli Alia"]
[Result "1-0"]
[TimeControl "15 min + 10 sec"]
[WhiteElo "833"]
[BlackElo "636"]

1. e4 {[%clk 00:15:19]} {[%emt 00:00:02]} e5 {[%clk 00:15:18]} {[%emt
00:00:01]} 2. Nf3 {[%clk 00:15:27]} {[%emt 00:00:02]} Nc6 {[%clk 00:15:27]}
{[%emt 00:00:02]} 3. Bb5 {[%clk 00:15:36]} {[%emt 00:00:02]} d6 {[%clk
00:15:32]} {[%emt 00:00:04]} 4. Bxc6+ {[%clk 00:15:43]} {[%emt 00:00:03]} bxc6
{[%clk 00:15:39]} {[%emt 00:00:02]} 5. d3 {[%clk 00:15:52]} {[%emt 00:00:02]}
Nf6 {[%clk 00:15:43]} {[%emt 00:00:06]} 6. Nc3 {[%clk 00:15:59]} {[%emt
00:00:03]} d5 {[%clk 00:15:47]} {[%emt 00:00:07]} 7. Nxe5 {[%clk 00:16:00]}
{[%emt 00:00:08]} Bb4 {[%clk 00:15:35]} {[%emt 00:00:22]} 8. Nxc6 {[%clk
00:15:59]} {[%emt 00:00:12]} Qd7 {[%clk 00:15:40]} {[%emt 00:00:04]} 9. Nxb4
{[%clk 00:16:07]} {[%emt 00:00:04]} d4 {[%clk 00:15:35]} {[%emt 00:00:14]} 10.
Ncd5 {[%clk 00:16:12]} {[%emt 00:00:06]} Qd8 {[%clk 00:15:25]} {[%emt
00:00:15]} 11. Qf3 {[%clk 00:16:04]} {[%emt 00:00:22]} Bg4 {[%clk 00:14:57]}
{[%emt 00:00:38]} 12. Qg3 {[%clk 00:16:07]} {[%emt 00:00:06]} Be6 {[%clk
00:15:00]} {[%emt 00:00:06]} 13. Nxc7+ {[%clk 00:16:13]} {[%emt 00:00:06]} Ke7
{[%clk 00:14:49]} {[%emt 00:00:19]} 14. Nc6+ {[%clk 00:16:18]} {[%emt
00:00:07]} Kd7 {[%clk 00:14:46]} {[%emt 00:00:11]} 15. Nxd8 {[%clk 00:16:26]}
{[%emt 00:00:04]} Rhxd8 {[%clk 00:14:54]} {[%emt 00:00:03]} 16. Nxa8 Rxa8
{[%clk 00:15:00]} 17. O-O {[%clk 00:16:37]} {[%emt 00:00:08]} g6 {[%clk
00:14:42]} {[%emt 00:00:29]} 18. Bg5 {[%clk 00:16:41]} {[%emt 00:00:05]} Nh5
{[%clk 00:14:34]} {[%emt 00:00:18]} 19. Qe5 {[%clk 00:16:39]} {[%emt 00:00:13]}
Re8 {[%clk 00:14:16]} {[%emt 00:00:22]} 20. Qxd4+ {[%clk 00:16:46]} {[%emt
00:00:07]} Kc8 {[%clk 00:14:18]} {[%emt 00:00:08]} 21. Qc5+ {[%clk 00:16:51]}
{[%emt 00:00:06]} Kd7 {[%clk 00:14:23]} {[%emt 00:00:05]} 22. Qxa7+ {[%clk
00:16:51]} {[%emt 00:00:10]} Kc6 {[%clk 00:14:24]} {[%emt 00:00:06]} 23. Qa4+
{[%clk 00:16:55]} {[%emt 00:00:08]} Kc7 {[%clk 00:14:30]} {[%emt 00:00:03]} 24.
Qxe8 {[%clk 00:17:03]} {[%emt 00:00:04]} Bd7 {[%clk 00:14:15]} {[%emt
00:00:24]} 25. Qe7 {[%clk 00:16:56]} {[%emt 00:00:18]} Ng7 {[%clk 00:14:02]}
{[%emt 00:00:23]} 26. Rfe1 {[%clk 00:17:00]} {[%emt 00:00:05]} Kc6 {[%clk
00:14:03]} {[%emt 00:00:08]} 27. Qf6+ {[%clk 00:17:05]} {[%emt 00:00:07]} Kb7
{[%clk 00:13:53]} {[%emt 00:00:19]} 28. Qxg7 {[%clk 00:17:12]} {[%emt
00:00:03]} Be8 {[%clk 00:13:50]} {[%emt 00:00:13]} 29. e5 {[%clk 00:17:20]}
{[%emt 00:00:03]} Kc7 {[%clk 00:13:50]} {[%emt 00:00:08]} 30. e6 {[%clk
00:17:29]} {[%emt 00:00:02]} Kd6 {[%emt 00:00:13]} 31. exf7 {[%clk 00:17:27]}
{[%emt 00:00:04]} Kd5 32. fxe8=Q {[%clk 00:17:43]} Kd4 {[%clk 00:13:50]} {[%emt
00:00:14]} 33. Qgf7 Kd5 {[%emt 00:01:08]} 34. Qe5+ 1-0